bitfinex/quotes_SOLUSD_20250129
["timestamp","ask_amount","ask_price","bid_price","bid_amount"]
[1738122466980,0.03,231.21,231.2,56.85002455]
[1738122467185,0.03,231.21,231.2,33.07314055]
[1738122468508,0.03,231.21,231.2,28.74794055]
[1738122468713,0.03,231.21,231.2,31.52245055]
[1738122474515,0.03,231.21,231.2,28.62245055]
[1738122474709,0.03,231.21,231.2,31.52245055]
[1738122476017,0.03,231.21,231.2,34.71937104]
[1738122479919,0.03,231.21,231.2,31.81937104]
[1738122480119,0.03,231.21,231.2,34.71937104]
[1738122482022,0.03,231.21,231.2,26.09692049]
[1738122482502,0.03,231.21,231.2,39.17006104]
[1738122486414,0.03,231.21,231.2,39.04457104]
[1738122487125,0.03,231.21,231.2,39.17006104]
[1738122491024,0.03,231.21,231.2,62.94694504]
[1738122492207,0.03,231.21,231.2,176.04694504]
[1738122492425,0.03,231.26,231.25,20.0]
[1738122492727,0.03,231.26,231.25,28.62245055]
[1738122493727,0.03,231.26,231.25,24.3243]
[1738122493911,0.03,231.26,231.25,4.3243]
[1738122494723,0.03,231.26,231.25,7.64671049]
[1738122495031,0.03,231.26,231.25,32.42359449]
[1738122498732,0.03,231.28,231.27,51.12549]
[1738122498913,0.03,231.28,231.27,59.74794055]
[1738122499114,0.03,231.32,231.31,0.12549]
[1738122499436,0.03,231.32,231.31,32.52482455]
[1738122500118,0.03,231.32,231.31,36.84802455]
[1738122501029,0.03,231.32,231.31,40.04494504]
[1738122504343,0.03,231.32,231.31,123.14494504]
[1738122509380,0.03,231.32,231.31,99.36806104]
[1738122509644,0.03,231.32,231.31,3.32241049]
[1738122509828,0.03,231.32,231.31,6.20241049]
[1738122510437,0.03,231.32,231.31,3.19692049]
[1738122510637,0.03,231.32,231.3,2.88]
[1738122511136,0.03,231.32,231.29,8.62245055]
[1738122511334,0.03,231.32,231.3,2.88]
[1738122513359,0.03,231.44,231.42,21.0]
[1738122513568,0.03,231.56,231.49,20.0]
[1738122513743,0.03,231.56,231.5,1.0]
[1738122513932,0.03,231.56,231.51,0.12549]
[1738122514141,0.03,231.56,231.51,24.44489]
[1738122514563,0.03,231.56,231.51,4.44489]
[1738122514863,0.03,231.56,231.51,13.06734055]
[1738122515842,0.03,231.56,231.51,36.84422455]
[1738122516034,0.03,231.56,231.51,37.84422455]
[1738122516657,0.03,231.56,231.51,42.65151927]
[1738122517158,0.03,231.56,231.53,55.44449]
[1738122517333,0.03,231.56,231.53,68.87423527]
[1738122517530,8.492e-05,231.59,231.58,51.12549]
[1738122517734,1.5103,231.75,231.66,20.0]
[1738122517933,1.5103,231.75,231.73,13.42974527]
[1738122519942,1.662,231.86,231.81,0.12549]
[1738122520157,1.662,231.86,231.85,13.42974527]
[1738122520337,1.662,231.86,231.84,2.96]
[1738122522442,1.662,231.86,231.79,13.42974527]
[1738122522641,13.42974527,231.84,231.76,16.38974527]
[1738122523043,13.42974527,231.82,231.76,2.96]
[1738122524655,13.42974527,231.83,231.76,16.38974527]
[1738122525157,13.42974527,231.84,231.77,13.42974527]
[1738122526544,15.09174527,231.86,231.78,13.42974527]
[1738122526743,1.662,231.86,231.81,13.42974527]
[1738122527551,1.662,231.86,231.84,13.42974527]
[1738122527753,1.611,231.92,231.85,13.42974527]
[1738122527954,1.611,231.92,231.86,13.42974527]
[1738122528644,1.611,231.92,231.85,13.42974527]
[1738122530470,13.42974527,231.93,231.85,13.42974527]
[1738122530771,13.42974527,231.91,231.83,13.42974527]
[1738122531572,37.20662927,231.93,231.85,13.42974527]
[1738122534975,37.20662927,231.93,231.83,13.42974527]
[1738122535353,13.42974527,231.88,231.78,13.42974527]
[1738122535671,13.42974527,231.86,231.78,2.96]
[1738122535873,14.96794527,231.86,231.78,2.96]
[1738122536249,13.42974527,231.84,231.78,2.96]
[1738122538081,14.96794527,231.86,231.78,16.38974527]
[1738122541378,1.5382,231.86,231.8,13.42974527]
[1738122541566,1.5382,231.92,231.84,13.42974527]
[1738122541755,1.5382,231.92,231.86,13.42974527]
[1738122542771,13.42974527,231.9,231.82,13.42974527]
[1738122543857,14.96794527,231.92,231.84,13.42974527]
[1738122544566,1.5382,231.92,231.86,13.42974527]
[1738122544777,1.5682,231.92,231.86,13.42974527]
[1738122546779,0.03,231.92,231.86,13.42974527]
[1738122547081,0.03,231.92,231.8,1.0]
[1738122547082,0.03,231.92,231.88,13.42974527]
[1738122547763,0.03,231.92,231.86,13.42974527]
[1738122547963,13.42974527,231.89,231.82,13.42974527]
[1738122548175,13.42974527,231.89,231.83,2.96]
[1738122548554,13.42974527,231.91,231.83,2.96]
[1738122548759,13.42974527,231.91,231.84,13.42974527]
[1738122548979,0.03,231.92,231.84,13.42974527]
[1738122549778,0.03,231.92,231.86,13.42974527]
[1738122549977,0.03,231.92,231.88,13.42974527]
[1738122550775,0.03,231.92,231.83,7.2733]
[1738122550980,0.03,231.92,231.86,13.42974527]
[1738122551682,0.03,231.92,231.84,13.42974527]
[1738122552868,13.42974527,231.91,231.84,13.42974527]
[1738122553064,13.42974527,231.91,231.83,2.96]
[1738122553271,23.776884,231.9,231.83,2.96]
[1738122553579,13.42974527,231.89,231.83,2.96]
[1738122553780,23.776884,231.91,231.83,2.96]
[1738122553781,13.42974527,231.87,231.83,2.96]
[1738122554981,13.42974527,231.87,231.78,13.42974527]
[1738122555178,13.42974527,231.87,231.78,16.36974527]
[1738122555986,13.42974527,231.85,231.78,16.36974527]
[1738122556885,13.42974527,231.85,231.78,2.94]
[1738122557263,13.42974527,231.81,231.74,13.42974527]
[1738122557481,13.42974527,231.81,231.75,2.94]
[1738122560284,13.42974527,231.85,231.76,13.42974527]
[1738122561067,13.42974527,231.83,231.77,3.18930753]
[1738122561371,13.42974527,231.79,231.77,3.18930753]
[1738122561960,13.42974527,231.81,231.77,3.18930753]
[1738122562287,13.42974527,231.81,231.74,13.42974527]
[1738122562493,13.42974527,231.83,231.74,13.42974527]
[1738122563970,13.42974527,231.81,231.75,3.18930753]
[1738122565000,13.42974527,231.83,231.74,13.42974527]
[1738122566185,13.42974527,231.77,231.72,51.26]
[1738122566392,13.42974527,231.75,231.72,51.26]
[1738122567092,13.42974527,231.75,231.68,16.36974527]
[1738122567597,25.345884,231.78,231.68,16.36974527]
[1738122567768,13.42974527,231.77,231.68,16.36974527]
[1738122567968,13.42974527,231.77,231.7,13.42974527]
[1738122569406,13.42974527,231.77,231.68,36.36974527]
[1738122569591,1.569,231.78,231.7,13.42974527]
[1738122569799,13.42974527,231.81,231.72,13.42974527]
[1738122570093,82.5,231.82,231.76,13.42974527]
[1738122570393,0.03,231.83,231.8,13.42974527]
[1738122570691,0.03,231.83,231.81,2.94]
[1738122571093,0.03,231.83,231.82,13.42974527]
[1738122572470,0.03,231.83,231.81,2.94]
[1738122576200,0.03,231.83,231.81,22.94]
[1738122576498,0.03,231.83,231.81,2.94]
[1738122578092,0.03,231.83,231.79,2.94]
[1738122581296,0.03,231.83,231.78,13.42974527]
[1738122581499,0.03,231.83,231.79,2.94]
[1738122582480,13.45974527,231.83,231.77,2.94]
[1738122582676,13.45974527,231.83,231.76,2.94]
[1738122583081,13.45974527,231.83,231.75,2.94]
[1738122583584,13.42974527,231.81,231.75,2.94]
[1738122584504,13.42974527,231.79,231.73,2.94]
[1738122585113,13.42974527,231.81,231.73,2.94]
[1738122585291,13.42974527,231.81,231.74,13.42974527]
[1738122585685,13.45974527,231.83,231.74,13.42974527]
[1738122587605,13.42974527,231.81,231.73,2.94]
[1738122587787,13.42974527,231.79,231.73,2.94]
[1738122587990,13.42974527,231.79,231.7,17.74564527]
[1738122588189,13.42974527,231.79,231.71,2.92]
[1738122588398,13.42974527,231.79,231.72,2.92]
[1738122589218,13.42974527,231.79,231.72,16.34974527]
[1738122590100,13.42974527,231.81,231.72,20.66514527]
[1738122592608,13.42974527,231.81,231.72,16.34974527]
[1738122592915,13.42974527,231.81,231.73,3.19503898]
[1738122593797,13.42974527,231.79,231.73,3.19503898]
[1738122594119,13.42974527,231.77,231.73,3.19503898]
[1738122594295,13.42974527,231.75,231.73,3.19503898]
[1738122595414,13.42974527,231.75,231.71,2.92]
[1738122596395,13.42974527,231.75,231.68,13.42974527]
[1738122596715,13.42974527,231.75,231.68,16.34974527]
[1738122597091,0.44147724,231.82,231.74,13.42974527]
[1738122597295,0.03,231.83,231.82,38.12159]
[1738122597510,0.03,231.83,231.82,11.18159]
[1738122598295,0.03,231.83,231.82,15.49519]
[1738122598516,0.03,231.83,231.82,18.68603728]
[1738122600320,0.03,231.83,231.82,72.46292128]
[1738122600516,0.03,231.83,231.82,85.89266655]
[1738122600703,0.03,231.83,231.82,18.68603728]
[1738122602217,0.03,231.83,231.82,11.31243728]
[1738122602418,0.03,231.83,231.82,14.35243728]
[1738122602722,0.03,231.83,231.82,14.22694728]
[1738122603117,0.03,231.83,231.82,14.35243728]
[1738122604123,0.03,231.83,231.82,14.22694728]
[1738122604614,0.03,231.83,231.82,6.23084728]
[1738122606707,0.03,231.83,231.82,3.04]
[1738122609207,0.03,231.83,231.81,33.42974527]
[1738122609407,0.03,231.83,231.82,3.04]
[1738122610835,0.03,231.83,231.81,13.42974527]
[1738122611016,0.03,231.83,231.78,51.28]
[1738122611216,0.03,231.83,231.76,13.42974527]
[1738122613031,13.45974527,231.83,231.76,13.42974527]
[1738122613937,13.45974527,231.83,231.75,3.04]
[1738122613938,0.03,231.83,231.78,13.42974527]
[1738122616030,0.03,231.83,231.76,13.42974527]
[1738122620138,0.03,231.83,231.71,0.12549]
[1738122620139,0.03,231.83,231.77,13.42974527]
[1738122621443,0.03,231.83,231.71,0.12549]
[1738122621444,0.03,231.83,231.76,3.02]
[1738122621642,0.03,231.83,231.77,13.42974527]
[1738122625247,13.42974527,231.82,231.75,3.02]
[1738122627635,13.42974527,231.8,231.75,3.02]
[1738122628039,13.42974527,231.79,231.73,0.12549]
[1738122628251,0.03,231.83,231.77,13.42974527]
[1738122628633,0.03,231.83,231.78,13.42974527]
[1738122629246,0.03,231.83,231.77,13.42974527]
[1738122629949,0.03,231.83,231.76,13.42974527]
[1738122631033,13.45974527,231.83,231.75,13.42974527]
[1738122631951,13.42974527,231.82,231.75,13.42974527]
[1738122632746,13.42974527,231.81,231.74,16.44974527]
[1738122634153,13.42974527,231.81,231.75,3.19582819]
[1738122634354,13.42974527,231.8,231.76,3.0]
[1738122634657,13.42974527,231.77,231.75,3.19582819]
[1738122634854,20.0,231.73,231.63,6.71935614]
[1738122635035,13.42974527,231.64,231.63,6.71935614]
[1738122635555,13.42974527,231.66,231.63,6.71935614]
[1738122635751,13.42974527,231.66,231.63,9.73935614]
[1738122635954,13.42974527,231.64,231.63,9.73935614]
[1738122636834,13.42974527,231.64,231.63,3.02]
[1738122637955,13.42974527,231.65,231.63,3.02]
[1738122638249,13.42974527,231.67,231.63,3.02]
[1738122639359,13.42974527,231.69,231.63,3.02]
[1738122639560,13.42974527,231.71,231.64,13.55523527]
[1738122639762,13.42974527,231.71,231.64,17.87223527]
[1738122639935,13.42974527,231.73,231.66,0.12549]
[1738122640547,13.42974527,231.71,231.63,16.44974527]
[1738122640731,13.42974527,231.69,231.63,3.02]
[1738122641139,13.42974527,231.67,231.63,3.02]
[1738122641338,13.42974527,231.65,231.63,3.02]
[1738122641550,13.42974527,231.64,231.61,3.083]
[1738122641846,13.42974527,231.67,231.62,0.12549]
[1738122642042,13.42974527,231.69,231.61,3.083]
[1738122642247,13.42974527,231.67,231.61,3.083]
[1738122642832,13.42974527,231.69,231.62,0.12549]
[1738122643039,13.42974527,231.69,231.62,13.55523527]
[1738122643444,13.42974527,231.74,231.65,0.12549]
[1738122643740,13.42974527,231.74,231.67,13.42974527]
[1738122645036,13.42974527,231.72,231.65,13.42974527]
[1738122645653,13.42974527,231.72,231.63,13.42974527]
[1738122647574,13.42974527,231.7,231.62,0.12549]
[1738122647866,13.42974527,231.7,231.61,13.49274527]
[1738122648039,17.276933,231.75,231.62,3.02]
[1738122648040,13.42974527,231.68,231.62,3.02]
[1738122648744,33.42974527,231.72,231.63,13.42974527]
[1738122648956,13.42974527,231.72,231.65,13.42974527]
[1738122650461,0.03,231.68,231.65,13.42974527]
[1738122650651,0.03,231.68,231.63,13.42974527]
[1738122651047,0.03,231.68,231.62,0.063]
[1738122651264,0.03,231.68,231.62,3.063]
[1738122651870,13.45974527,231.68,231.62,0.063]
[1738122652046,13.45974527,231.68,231.63,3.0]
[1738122652573,13.42974527,231.66,231.63,3.0]
[1738122653871,13.42974527,231.66,231.62,0.063]
[1738122654256,13.42974527,231.64,231.62,0.063]
[1738122654849,33.42974527,231.66,231.62,0.063]
[1738122655774,0.03,231.68,231.63,13.42974527]
[1738122657671,0.03,231.68,231.67,13.42974527]
[1738122660782,0.03,231.68,231.65,13.42974527]
[1738122661283,0.03,231.68,231.67,13.55523527]
[1738122661666,0.03,231.68,231.67,37.33211927]
[1738122661867,0.03,231.68,231.67,13.55523527]
[1738122662264,0.03,231.68,231.67,67.33211927]
[1738122662761,0.03,231.68,231.67,71.64851927]
[1738122663175,0.03,231.68,231.67,13.42974527]
[1738122664295,0.03,231.68,231.67,16.42974527]
[1738122664464,0.03,231.68,231.67,3.0]
[1738122665284,0.03,231.68,231.67,16.42974527]
[1738122665677,0.03,231.68,231.67,16.55523527]
[1738122665978,0.03,231.68,231.67,20.87163527]
[1738122667189,0.03,231.68,231.67,44.64851927]
[1738122669261,0.03,231.68,231.67,20.87163527]
[1738122669986,0.03,231.68,231.67,16.55523527]
[1738122677189,0.03,231.68,231.67,13.42974527]
[1738122677393,0.03,231.68,231.67,16.40974527]
[1738122679191,0.03,231.68,231.67,2.98]
[1738122679498,0.03,231.68,231.65,2.98]
[1738122679875,13.42974527,231.67,231.65,2.98]
[1738122680077,13.42974527,231.67,231.63,0.063]
[1738122680586,0.03,231.68,231.63,0.063]
[1738122684193,0.03,231.68,231.63,13.49274527]
[1738122684591,0.03,231.68,231.67,13.42974527]
[1738122684991,0.03,231.68,231.67,13.55523527]
[1738122686472,0.03,231.68,231.67,17.87163527]
[1738122690303,0.03,231.68,231.67,13.55523527]
[1738122691101,0.03,231.68,231.67,17.87163527]
[1738122691601,0.03,231.68,231.67,71.64851927]
[1738122692496,0.03,231.68,231.67,41.64851927]
[1738122693490,0.03,231.68,231.67,17.87163527]
[1738122693695,0.03,231.68,231.67,13.55523527]
[1738122696105,0.03,231.68,231.67,16.38974527]
[1738122696402,0.03,231.68,231.67,2.96]
[1738122698903,0.03,231.68,231.67,16.51523527]
[1738122700002,0.03,231.68,231.67,20.83163527]
[1738122701909,0.03,231.68,231.67,74.60851927]
[1738122703700,0.03,231.68,231.67,44.60851927]
[1738122704012,0.03,231.68,231.66,2.96]
[1738122704897,0.03,231.68,231.63,3.023]
[1738122706209,13.42974527,231.67,231.63,0.063]
[1738122707092,13.42974527,231.65,231.63,0.063]
[1738122707696,13.42974527,231.67,231.63,0.063]
[1738122707892,0.03,231.68,231.63,0.063]
[1738122710111,13.42974527,231.67,231.63,0.063]
[1738122710293,0.03,231.68,231.63,0.063]
[1738122710492,0.03,231.68,231.63,13.49274527]
[1738122712492,0.03,231.68,231.63,0.063]
[1738122713012,13.42974527,231.67,231.63,0.063]
[1738122715117,0.03,231.68,231.63,0.063]
[1738122720430,0.03,231.68,231.63,13.49274527]
[1738122720729,0.03,231.68,231.63,0.063]
[1738122720921,13.42974527,231.67,231.63,0.063]
[1738122721413,0.03,231.68,231.63,0.063]
[1738122721934,0.03,231.68,231.63,13.49274527]
[1738122722322,0.03,231.68,231.65,13.42974527]
[1738122725129,0.03,231.68,231.65,17.74644527]
[1738122725430,0.03,231.68,231.67,13.55523527]
[1738122726514,0.03,231.68,231.67,67.33211927]
[1738122726929,0.03,231.68,231.67,17.87163527]
[1738122727111,0.03,231.68,231.64,30.0]
[1738122727112,0.03,231.68,231.64,13.42974527]
[1738122727315,0.03,231.68,231.64,16.36974527]
[1738122729924,0.03,231.68,231.66,13.42974527]
[1738122730139,0.03,231.68,231.64,20.68664527]
[1738122732620,0.03,231.68,231.64,2.94]
[1738122733717,0.03,231.68,231.64,20.68674527]
[1738122733936,0.03,231.68,231.66,13.42974527]
[1738122734725,0.03,231.68,231.67,0.12549]
[1738122734931,0.03,231.68,231.67,25.531874]
[1738122735643,0.0001,231.68,231.67,26.531874]
[1738122736439,0.0001,231.68,231.67,25.531874]
[1738122739840,0.0001,231.68,231.67,32.788274]
[1738122740234,0.0001,231.68,231.67,9.01139]
[1738122740829,0.0001,231.68,231.67,6.07139]
[1738122741130,0.0001,231.68,231.67,8.99139]
[1738122741938,0.0001,231.68,231.67,4.44189]
[1738122742154,0.0001,231.68,231.67,7.36189]
[1738122742324,0.0001,231.68,231.66,13.42974527]
[1738122742642,0.0001,231.68,231.67,2.92]
[1738122743018,0.0001,231.68,231.63,0.063]
[1738122743242,0.0001,231.68,231.64,2.94]
[1738122743844,13.42984527,231.68,231.63,0.063]
[1738122744040,13.42974527,231.66,231.63,3.003]
[1738122745844,13.42984527,231.68,231.63,0.063]
[1738122746543,13.42974527,231.66,231.63,0.063]
[1738122746843,0.0001,231.68,231.63,0.063]
[1738122746844,13.42974527,231.64,231.63,0.063]
[1738122751541,38.74082927,231.64,231.63,0.0001]
[1738122751748,39.73992927,231.64,231.63,0.0001]
[1738122752160,1.0,231.63,231.62,0.0001]
[1738122761852,1.9991,231.63,231.62,0.0001]
[1738122762146,41.83631927,231.64,231.62,0.0001]
[1738122762147,14.99394527,231.64,231.62,0.0001]
[1738122762369,13.45974527,231.64,231.62,0.0001]
[1738122765452,23.776884,231.63,231.62,0.0001]
[1738122765840,106.276884,231.63,231.62,0.0001]
[1738122771963,13.45974527,231.64,231.62,0.0001]
[1738122772552,0.03,231.64,231.62,0.0001]
[1738122775672,13.46000968,231.64,231.62,0.0001]
[1738122778155,0.03,231.64,231.62,0.0001]
[1738122780759,13.46000968,231.64,231.62,0.0001]
[1738122785676,106.276884,231.63,231.62,0.0001]
[1738122785885,20.0,231.6,231.48,21.14970968]
[1738122786084,13.43000968,231.55,231.49,2.9]
[1738122787065,13.43000968,231.55,231.5,2.9]
[1738122787565,13.43000968,231.55,231.48,7.7197]
[1738122787768,13.43000968,231.55,231.5,2.9]
[1738122788385,13.43000968,231.55,231.49,2.9]
[1738122789679,13.43000968,231.55,231.5,2.9]
[1738122790388,13.43000968,231.55,231.5,2.963]
[1738122790890,13.43000968,231.55,231.5,0.063]
[1738122796691,8.60414956,231.52,231.5,0.063]
[1738122811095,91.10414956,231.57,231.5,8.66714956]
[1738122811682,8.60414956,231.57,231.5,10.27304956]
[1738122815702,8.60414956,231.57,231.5,1.6689]
[1738122816003,8.60414956,231.55,231.5,1.6689]
[1738122816397,8.60414956,231.53,231.5,0.063]
[1738122816592,8.60414956,231.51,231.5,0.063]
[1738122820997,32.38103356,231.51,231.5,0.063]
[1738122823516,8.60414956,231.51,231.5,0.063]
[1738122826922,23.776884,231.47,231.4,1.6882]
[1738122827119,8.60414956,231.42,231.4,0.063]
[1738122827619,32.38103356,231.41,231.4,0.063]
[1738122831913,8.60414956,231.41,231.4,0.063]
[1738122835010,9.72963956,231.41,231.4,0.0001]
[1738122835510,20.9991,231.39,231.38,0.063]
[1738122835714,53.38013356,231.39,231.38,0.063]
[1738122838927,28.60414956,231.39,231.38,0.063]
[1738122839313,8.60414956,231.39,231.38,0.063]
[1738122843629,8.60414956,231.42,231.38,0.063]
[1738122845049,8.60414956,231.42,231.38,1.6152]
[1738122849139,8.63414956,231.42,231.38,1.6152]
[1738122850418,8.60414956,231.4,231.38,1.6152]
[1738122851940,8.63414956,231.42,231.38,1.6152]
[1738122852114,0.03,231.42,231.39,6.0929]
[1738122852319,0.03,231.42,231.4,8.60414956]
[1738122853119,0.03,231.42,231.39,6.0929]
[1738122854729,0.03,231.42,231.4,8.60414956]
[1738122855130,0.03,231.42,231.39,6.0929]
[1738122855947,0.03,231.42,231.4,8.72963956]
[1738122856447,0.03,231.42,231.41,4.44679]
[1738122857019,0.03,231.42,231.4,8.60414956]
[1738122857347,0.03,231.42,231.4,12.92554956]
[1738122858343,0.03,231.42,231.4,8.60414956]
[1738122860245,0.03,231.42,231.4,12.92554956]
[1738122860651,0.03,231.42,231.4,8.60414956]
[1738122864549,0.03,231.42,231.39,10.4145]
[1738122864749,0.03,231.42,231.39,6.0929]
[1738122864947,0.03,231.42,231.4,2.9]
[1738122874337,0.03,231.42,231.38,4.953032]
[1738122874539,0.03,231.42,231.39,2.9]
[1738122875948,8.60414956,231.41,231.39,2.9]
[1738122876935,8.60414956,231.4,231.38,4.953032]
[1738122877272,114.88103356,231.39,231.38,4.953032]
[1738122881959,115.00652356,231.39,231.38,3.2e-05]
[1738122884459,115.00652356,231.39,231.38,0.063032]
[1738122885160,115.00652356,231.39,231.38,3.2e-05]
[1738122886563,114.88103356,231.39,231.38,3.2e-05]
[1738122887564,32.38103356,231.39,231.38,3.2e-05]
[1738122891465,0.12549,231.34,231.3,0.063]
[1738122891667,8.60414956,231.31,231.3,0.063]
[1738122891967,9.0456268,231.31,231.3,0.063]
[1738122893155,20.0,231.28,231.26,0.063]
[1738122893368,52.38103356,231.27,231.26,0.063]
[1738122894471,135.00652356,231.27,231.26,0.0001]
[1738122900276,134.88103356,231.27,231.26,0.0001]
[1738122904880,135.00652356,231.27,231.26,0.0001]
[1738122905074,170.4222218,231.27,231.26,0.0001]
[1738122905486,173.3852218,231.27,231.26,0.0001]
[1738122905781,91.8852218,231.27,231.26,0.0001]
[1738122905973,32.38103356,231.2,231.19,0.063]
[1738122906882,8.60414956,231.2,231.19,0.063]
[1738122907961,82.5,231.23,231.19,0.063]
[1738122907962,8.60414956,231.22,231.19,0.063]
[1738122910872,8.60414956,231.2,231.19,0.063]
[1738122916970,8.60414956,231.22,231.19,0.063]
[1738122917587,8.60414956,231.24,231.19,0.063]
[1738122918475,8.60414956,231.22,231.19,0.063]
[1738122921593,8.60414956,231.2,231.19,0.063]
[1738122923969,32.38103356,231.2,231.19,0.063]
[1738122933013,8.60414956,231.2,231.19,0.063]
[1738122935417,32.38103356,231.2,231.19,0.063]
[1738122935787,32.50652356,231.2,231.19,0.063]
[1738122937251,32.38103356,231.2,231.19,0.063]
[1738122943632,8.60414956,231.2,231.19,0.063]
[1738122948329,32.38103356,231.2,231.19,0.063]
[1738122948531,32.38103356,231.2,231.19,0.0001]
[1738122954607,8.60414956,231.2,231.19,0.0001]
[1738122954833,8.60414956,231.22,231.19,0.0001]
[1738122955012,8.60414956,231.24,231.19,0.0001]
[1738122955520,8.60414956,231.22,231.19,0.0001]
[1738122956734,8.60414956,231.2,231.19,0.0001]
[1738122964770,32.38103356,231.2,231.19,0.0001]
[1738122966072,8.60414956,231.2,231.19,0.0001]
[1738122969793,8.63414956,231.2,231.19,0.0001]
[1738122974828,0.03,231.2,231.19,0.0001]
[1738122975476,0.03,231.2,231.19,10.20704956]
[1738122975790,0.03,231.2,231.19,16.61294956]
[1738122976274,0.03,231.2,231.19,8.0088]
[1738122979880,0.03,231.2,231.19,1.6029]
[1738122980190,8.63414956,231.2,231.19,0.0001]
[1738122980978,32.41103356,231.2,231.19,0.0001]
[1738122986479,8.63414956,231.2,231.19,0.0001]
[1738122988696,114.91103356,231.2,231.19,0.0001]
[1738122991102,91.13414956,231.2,231.19,0.0001]
[1738122991417,8.63414956,231.2,231.19,0.0001]
[1738122991791,0.03,231.2,231.19,0.0001]
[1738122994405,8.63414956,231.2,231.19,0.0001]
[1738122994708,114.91103356,231.2,231.19,0.0001]
[1738122997110,91.13414956,231.2,231.19,0.0001]
[1738122998010,82.53,231.2,231.19,0.0001]
[1738122998191,0.03,231.2,231.19,0.0001]
[1738123000709,0.03,231.2,231.19,8.60424956]
[1738123000908,0.03,231.2,231.19,8.72973956]
[1738123002008,0.03,231.2,231.19,13.05513956]
[1738123004588,0.03,231.2,231.19,8.60424956]
[1738123013520,0.03,231.27,231.24,23.902374]
[1738123013701,8.26553638,231.46,231.3,20.0]
[1738123013702,8.63414956,231.44,231.3,20.0]
[1738123013905,8.63414956,231.44,231.36,8.60414956]
[1738123014112,0.03,231.44,231.38,20.0]
[1738123014515,0.03,231.44,231.38,28.60414956]
[1738123022722,8.63414956,231.44,231.38,20.0]
[1738123023029,8.63414956,231.44,231.38,3.2]
[1738123023230,8.63414956,231.44,231.38,23.2]
[1738123023539,0.03,231.44,231.38,31.80414956]
[1738123031816,0.03,231.44,231.38,11.80414956]
[1738123032539,8.63414956,231.44,231.38,20.0]
[1738123032835,8.60414956,231.41,231.37,3.16]
[1738123033812,8.60414956,231.43,231.37,3.16]
[1738123034523,8.63414956,231.44,231.37,11.76414956]
[1738123035434,8.63414956,231.44,231.37,3.16]
[1738123035435,8.60414956,231.43,231.37,3.16]
[1738123036312,8.60414956,231.43,231.36,3.16]
[1738123037125,8.63414956,231.42,231.34,8.60414956]
[1738123037313,8.60414956,231.41,231.35,3.16]
[1738123038629,0.03,231.42,231.35,11.76414956]
[1738123039133,8.63414956,231.42,231.35,3.16]
[1738123039320,8.60414956,231.41,231.35,3.16]
[1738123039724,8.60414956,231.4,231.33,8.60414956]
[1738123039923,8.60414956,231.41,231.34,11.76414956]
[1738123040232,8.63414956,231.42,231.35,8.60414956]
[1738123043844,0.03,231.42,231.35,8.60414956]
[1738123044226,0.03,231.42,231.37,8.60414956]
[1738123044937,0.03,231.42,231.38,8.60414956]
[1738123047546,0.03,231.42,231.38,12.92594956]
[1738123056048,0.03,231.42,231.38,8.60414956]
[1738123058458,0.03,231.42,231.38,13.76815088]
[1738123063864,0.03,231.42,231.41,44.776884]
[1738123064071,0.03,231.42,231.41,68.81286992]
[1738123064442,0.03,231.5,231.49,0.12549]
[1738123064650,0.03,231.5,231.49,42.89261927]
[1738123065167,0.03,231.5,231.49,38.60826971]
[1738123065554,0.03,231.5,231.49,43.77227103]
[1738123067757,0.03,231.5,231.49,19.99538703]
[1738123067959,0.03,231.5,231.49,12.68929132]
[1738123068158,0.03,231.5,231.49,8.24400132]